bitfinex-derivatives/quotes_SOLF0:USTF0_20250114
["timestamp","ask_amount","ask_price","bid_price","bid_amount"]
[1736877374341,2.6827,186.48,186.42,13.97600934]
[1736877375245,2.6827,186.48,186.45,2.6831]
[1736877378353,2.683,186.46,186.43,2.6832]
[1736877380254,2.6834,186.43,186.4,2.6838]
[1736877380749,2.6834,186.43,186.38,15.37179979]
[1736877380750,2.6837,186.42,186.38,15.37179979]
[1736877380944,5.58,186.46,186.38,7.41366751]
[1736877381147,7.95813228,186.39,186.34,26.9603428]
[1736877381444,5.58,186.39,186.34,26.9603428]
[1736877382053,5.58,186.39,186.31,2.685]
[1736877382054,2.6845,186.36,186.31,2.685]
[1736877382255,5.58,186.39,186.28,22.12877529]
[1736877382953,5.58,186.39,186.29,2.6853]
[1736877383651,5.58,186.39,186.27,14.01412342]
[1736877383954,2.6849,186.33,186.27,14.01412342]
[1736877384253,2.6849,186.33,186.28,2.6854]
[1736877384455,2.6849,186.33,186.27,14.01412342]
[1736877385253,2.6849,186.33,186.29,2.6853]
[1736877389357,2.6849,186.33,186.32,2.685]
[1736877392255,2.6849,186.33,186.3,2.6852]
[1736877395958,2.6849,186.33,186.26,1.7087]
[1736877396158,2.6849,186.33,186.28,2.6854]
[1736877396957,2.6849,186.33,186.29,2.6854]
[1736877397158,2.6849,186.33,186.27,12.44982342]
[1736877397562,2.6849,186.33,186.31,2.6851]
[1736877397761,2.6849,186.33,186.27,12.44982342]
[1736877398561,2.6849,186.33,186.28,2.6854]
[1736877398763,2.6851,186.32,186.26,1.7087]
[1736877399452,2.6851,186.32,186.27,2.6856]
[1736877399855,2.6854,186.3,186.26,1.7087]
[1736877400055,2.6854,186.3,186.26,4.3945]
[1736877402960,2.6854,186.3,186.26,10.65840963]
[1736877403362,2.6854,186.3,186.27,2.6856]
[1736877406963,2.6855,186.29,186.25,4.2673]
[1736877407259,7.97260963,186.28,186.25,2.6859]
[1736877407458,10.65820963,186.28,186.25,2.6859]
[1736877407659,2.6856,186.28,186.26,2.6858]
[1736877409364,2.6856,186.28,186.27,2.6857]
[1736877409965,2.6856,186.28,186.24,7.97260963]
[1736877410168,2.6856,186.28,186.25,2.6858]
[1736877412762,2.6856,186.28,186.26,7.97260963]
[1736877413265,5.58,186.35,186.26,7.97260963]
[1736877413465,13.55260963,186.35,186.28,7.97260963]
[1736877413664,7.97260963,186.35,186.28,7.97260963]
[1736877414068,7.97260963,186.33,186.25,22.12877529]
[1736877414266,7.97260963,186.33,186.27,7.97260963]
[1736877414560,7.97260963,186.31,186.25,22.12877529]
[1736877414765,7.97260963,186.31,186.26,4.96540308]
[1736877415367,7.97260963,186.31,186.24,50.03532144]
[1736877415565,2.6856,186.28,186.25,2.6859]
[1736877422672,2.6856,186.28,186.25,7.97260963]
[1736877423173,2.6856,186.28,186.27,7.97260963]
[1736877423373,7.97260963,186.36,186.27,10.65790963]
[1736877423574,7.97260963,186.38,186.31,7.97260963]
[1736877424380,1.6085,186.43,186.35,7.97260963]
[1736877424573,7.97260963,186.42,186.35,7.97260963]
[1736877424773,13.55260963,186.44,186.37,7.97260963]
[1736877425173,5.58,186.44,186.39,7.97260963]
[1736877425371,5.58,186.44,186.37,12.43790516]
[1736877426477,5.58,186.44,186.34,12.43790516]
[1736877426976,5.58,186.44,186.33,22.12877529]
[1736877426977,5.58,186.44,186.37,12.43790516]
[1736877428072,8.0513,186.41,186.39,2.6839]
[1736877431176,8.0513,186.41,186.34,15.77190516]
[1736877431580,2.6837,186.41,186.34,15.77190516]
[1736877431774,2.684,186.39,186.34,3.334]
[1736877432271,5.58,186.61,186.38,12.43790516]
[1736877432478,12.43790516,186.56,186.44,12.43790516]
[1736877433069,13.99820516,186.53,186.39,5.58]
[1736877433272,13.99820516,186.53,186.4,12.43790516]
[1736877433779,15.63360516,186.53,186.4,12.43790516]
[1736877434383,2.6829,186.47,186.43,2.6833]
[1736877434580,2.6829,186.47,186.43,12.43790516]
[1736877435183,2.6829,186.47,186.39,18.01790516]
[1736877435382,2.6829,186.47,186.43,12.43790516]
[1736877435880,2.6829,186.47,186.45,2.683]
[1736877436981,2.6829,186.47,186.46,2.683]
[1736877447200,13.4094,186.54,186.49,2.6824]
[1736877447497,13.4094,186.54,186.49,7.95311481]
[1736877447800,13.4094,186.54,186.51,7.95311481]
[1736877448591,13.4094,186.54,186.52,2.6821]
[1736877451400,13.4094,186.54,186.5,2.6823]
[1736877451897,13.4094,186.54,186.48,12.42368155]
[1736877452301,13.4094,186.54,186.51,2.6822]
[1736877453602,13.4094,186.54,186.49,2.6824]
[1736877453796,13.4094,186.54,186.48,12.42368155]
[1736877454901,13.4094,186.54,186.5,2.6823]
[1736877455403,2.682,186.53,186.45,12.42368155]
[1736877455597,2.682,186.53,186.49,2.6824]
[1736877460808,2.6822,186.51,186.45,12.42368155]
[1736877464508,2.6822,186.51,186.45,19.82157306]
[1736877465311,2.6822,186.51,186.45,12.42368155]
[1736877467217,2.6822,186.51,186.5,2.6824]
[1736877468209,2.6822,186.51,186.46,7.39789151]
[1736877469112,2.6822,186.51,186.48,2.6826]
[1736877471319,2.6822,186.51,186.47,7.95453353]
[1736877471617,2.6822,186.51,186.49,2.6824]
[1736877473919,2.6822,186.51,186.47,10.63723353]
[1736877474320,2.6822,186.51,186.47,7.95453353]
[1736877474520,2.6822,186.51,186.48,2.6826]
[1736877476521,2.6822,186.51,186.47,7.95453353]
[1736877476725,2.6822,186.51,186.49,2.6825]
[1736877477820,2.6822,186.51,186.5,2.6824]
[1736877480521,10.7275,186.54,186.53,2.682]
[1736877480723,10.7275,186.54,186.53,10.63653353]
[1736877481021,2.6813,186.58,186.53,10.63653353]
[1736877481224,2.6813,186.58,186.57,10.63593353]
[1736877482317,13.4022,186.64,186.57,7.95453353]
[1736877482517,13.4022,186.64,186.6,2.6809]
[1736877482929,16.0848,186.62,186.5,49.43911909]
[1736877483221,7.95453353,186.61,186.54,7.95453353]
[1736877484324,2.6811,186.59,186.54,7.95453353]
[1736877484819,7.95453353,186.55,186.49,29.5266668]
[1736877485025,7.95453353,186.55,186.49,7.39789151]
[1736877485915,7.95453353,186.55,186.5,2.6823]
[1736877485916,2.6818,186.54,186.5,2.6823]
[1736877489027,2.6818,186.54,186.5,10.63683353]
[1736877489223,2.6818,186.54,186.5,7.95453353]
[1736877489425,2.6818,186.54,186.52,2.6821]
[1736877489622,2.6818,186.54,186.52,7.95453353]
[1736877491131,2.6818,186.54,186.53,2.682]
[1736877494028,16.0848,186.62,186.52,7.95453353]
[1736877494222,2.6809,186.61,186.58,7.95453353]
[1736877494427,2.6809,186.61,186.6,7.95453353]
[1736877494624,13.4022,186.64,186.6,7.95453353]
[1736877494829,11.6834,186.64,186.63,7.95453353]
[1736877496425,11.6834,186.64,186.57,3.1542]
[1736877496625,11.6834,186.64,186.6,7.95453353]
[1736877496826,7.95453353,186.63,186.55,7.95453353]
[1736877497032,7.95453353,186.63,186.57,7.95453353]
[1736877497235,10.63523353,186.63,186.57,10.63583353]
[1736877497431,2.6807,186.63,186.54,12.41634625]
[1736877498930,2.6807,186.63,186.57,2.6812]
[1736877501637,13.367,186.64,186.57,2.6812]
[1736877501934,2.681,186.6,186.55,2.6816]
[1736877503237,2.681,186.6,186.57,2.6813]
[1736877503537,2.681,186.6,186.56,12.41634625]
[1736877505132,2.681,186.6,186.58,2.6812]
[1736877505839,2.681,186.6,186.59,2.6811]
[1736877510945,2.681,186.6,186.53,12.41634625]
[1736877511646,2.681,186.6,186.56,2.6814]
[1736877512245,2.6811,186.59,186.56,2.6814]
[1736877514447,12.41634625,186.61,186.5,12.41634625]
[1736877514848,2.6814,186.57,186.54,2.6817]
[1736877515652,2.6815,186.56,186.54,2.6817]
[1736877517152,2.6815,186.56,186.49,7.39789151]
[1736877517349,2.6815,186.56,186.52,2.682]
[1736877517652,2.6815,186.56,186.49,7.39789151]
[1736877518056,2.6815,186.56,186.48,12.41634625]
[1736877519352,2.6815,186.56,186.53,7.94977774]
[1736877521050,2.6815,186.56,186.53,10.63167774]
[1736877525761,2.6815,186.56,186.54,2.6818]
[1736877533261,2.6815,186.56,186.53,7.94977774]
[1736877533564,2.6815,186.56,186.55,2.6817]
[1736877534364,2.6815,186.56,186.55,10.63147774]
[1736877536761,2.6815,186.56,186.53,2.6819]
[1736877536961,5.58,186.63,186.53,2.6819]
[1736877536962,2.6817,186.55,186.53,7.94977774]
[1736877537266,2.6817,186.55,186.51,7.94977774]
[1736877537462,2.6817,186.55,186.51,10.63197774]
[1736877537660,2.6818,186.54,186.51,10.63197774]
[1736877537860,2.6818,186.54,186.51,7.94977774]
[1736877538265,7.94977774,186.57,186.51,7.94977774]
[1736877538661,7.94977774,186.55,186.48,37.47644454]
[1736877538863,2.6823,186.51,186.48,37.47644454]
[1736877539367,2.6823,186.51,186.48,7.94977774]
[1736877539763,2.6823,186.51,186.5,7.94977774]
[1736877541067,2.6823,186.51,186.5,10.63217774]
[1736877548277,2.6823,186.51,186.48,7.94977774]
[1736877549573,2.6823,186.51,186.48,10.63247774]
[1736877550772,2.6823,186.51,186.48,7.94977774]
[1736877552478,2.6823,186.51,186.48,10.63247774]
[1736877554281,2.6823,186.51,186.48,7.94977774]
[1736877554578,2.6823,186.51,186.5,7.94977774]
[1736877555876,2.6814,186.57,186.5,7.94977774]
[1736877556076,2.6814,186.57,186.56,7.94977774]
[1736877557175,2.6814,186.57,186.56,10.63127774]
[1736877557883,2.6814,186.57,186.56,7.94977774]
[1736877558782,2.6814,186.57,186.54,10.63157774]
[1736877560484,2.6814,186.57,186.54,7.94977774]
[1736877564088,2.6814,186.57,186.56,2.6815]
[1736877564389,2.6814,186.57,186.56,10.63127774]
[1736877565783,5.3617,186.61,186.56,10.63127774]
[1736877565784,5.3617,186.61,186.6,2.6809]
[1736877567088,13.31147774,186.61,186.56,7.94977774]
[1736877567289,13.31147774,186.61,186.54,7.94977774]
[1736877568084,2.6812,186.59,186.56,2.6815]
[1736877569083,2.6812,186.59,186.57,2.6814]
[1736877572290,2.6812,186.59,186.56,7.94977774]
[1736877572491,2.6812,186.59,186.58,2.6812]
[1736877572786,5.58,186.62,186.56,7.94977774]
[1736877572983,7.94977774,186.63,186.58,7.94977774]
[1736877573189,10.63037774,186.63,186.6,2.6809]
[1736877573589,10.63037774,186.63,186.58,7.94977774]
[1736877573892,10.63037774,186.63,186.59,2.681]
[1736877574092,2.6806,186.63,186.58,7.94977774]
[1736877574389,2.6803,186.65,186.62,2.6806]
[1736877576495,7.94977774,186.66,186.62,2.6806]
[1736877576694,2.6804,186.65,186.62,2.6806]
[1736877578897,2.6804,186.64,186.62,2.6806]
[1736877580994,2.6804,186.64,186.61,2.6808]
[1736877583399,2.6804,186.64,186.62,7.94977774]
[1736877583601,2.6803,186.65,186.62,10.63037774]
[1736877584297,1.6917,186.67,186.62,7.94977774]
[1736877584603,10.68028791,186.68,186.62,7.94977774]
[1736877585102,10.68028791,186.68,186.64,2.6803]
[1736877585103,2.68,186.67,186.64,2.6803]
[1736877585500,2.68,186.67,186.57,1.6851]
[1736877585501,7.94977774,186.67,186.6,7.94977774]
[1736877585698,2.6802,186.65,186.62,2.6806]
[1736877586001,2.6802,186.65,186.62,10.63037774]
[1736877589097,2.6802,186.65,186.62,2.6806]
[1736877592501,2.6799,186.68,186.65,2.6802]
[1736877592899,7.94977774,186.69,186.65,2.6802]
[1736877593100,2.6799,186.68,186.65,2.6802]
[1736877593704,2.68,186.67,186.65,2.6802]
[1736877594403,2.6798,186.68,186.65,2.6802]
[1736877596006,2.6798,186.68,186.66,2.68]
[1736877598010,7.94977774,186.69,186.63,7.94977774]
[1736877598211,2.68,186.67,186.64,2.6803]
[1736877598915,2.6798,186.68,186.65,2.6802]
[1736877599314,10.3585,186.72,186.65,7.94977774]
[1736877599512,2.6795,186.7,186.65,7.94977774]
[1736877600214,2.6795,186.7,186.67,7.94977774]
[1736877600417,2.6795,186.7,186.67,10.62967774]
[1736877600712,7.94977774,186.71,186.67,2.6799]
[1736877601017,1.5662,186.72,186.68,2.6798]
[1736877601218,2.6794,186.71,186.68,2.6798]
[1736877601616,1.5662,186.72,186.68,2.6798]
[1736877601810,2.6795,186.7,186.67,7.94977774]
[1736877602006,7.94977774,186.71,186.6,7.46815451]
[1736877602211,2.6804,186.64,186.61,7.94977774]
[1736877602514,7.94977774,186.67,186.62,2.6805]
[1736877602715,7.94977774,186.69,186.62,2.6805]
[1736877603115,2.6801,186.66,186.63,10.63017774]
[1736877603313,7.94977774,186.67,186.61,7.94977774]
[1736877603510,7.94977774,186.67,186.59,7.94977774]
[1736877603708,2.6808,186.61,186.59,7.94977774]
[1736877603914,7.94977774,186.65,186.59,7.94977774]
[1736877604416,7.94977774,186.66,186.59,7.94977774]
[1736877605613,13.50977774,186.66,186.59,7.94977774]
[1736877606315,2.6806,186.63,186.6,2.6809]
[1736877606715,2.6806,186.63,186.59,10.63077774]
[1736877607315,2.6803,186.65,186.61,10.63057774]
[1736877607525,5.56,186.66,186.61,7.94977774]
[1736877608720,8.2402,186.66,186.62,2.6806]
[1736877609216,5.56,186.66,186.62,2.6806]
[1736877609423,13.50977774,186.68,186.62,2.6806]
[1736877609920,7.94977774,186.66,186.58,7.94977774]
[1736877610518,2.6806,186.63,186.6,10.63067774]
[1736877613222,2.6806,186.63,186.6,2.6809]
[1736877613416,2.6806,186.63,186.6,10.63067774]
[1736877613821,2.6804,186.64,186.61,2.6807]
[1736877614018,7.94977774,186.67,186.6,7.94977774]
[1736877614315,5.56,186.68,186.6,7.94977774]
[1736877614521,7.94977774,186.67,186.6,7.94977774]
[1736877615325,7.94977774,186.67,186.61,2.6807]
[1736877615516,7.94977774,186.67,186.6,7.94977774]
[1736877615714,7.94977774,186.67,186.62,2.6806]
[1736877615715,2.6803,186.65,186.62,2.6806]
[1736877616421,2.6801,186.66,186.63,2.6805]
[1736877616624,3.3342,186.7,186.64,7.94977774]
[1736877616822,13.50977774,186.75,186.68,7.94977774]
[1736877617025,2.6793,186.72,186.69,2.6796]
[1736877617326,5.56,186.74,186.68,7.94977774]
[1736877617525,2.6792,186.73,186.68,10.62957774]
[1736877617722,5.56,186.74,186.68,7.94977774]
[1736877618925,4.8108,186.79,186.72,7.94977774]
[1736877619119,3.1792,186.79,186.74,7.94977774]
[1736877619525,5.8575,186.79,186.75,2.6787]
[1736877619730,4.3042,186.79,186.75,2.6787]
[1736877620033,2.6783,186.79,186.75,2.6787]
[1736877620429,2.6784,186.78,186.75,2.6787]
[1736877621824,2.6784,186.78,186.74,7.94977774]
[1736877622027,7.94977774,186.77,186.72,7.94977774]
[1736877622628,2.6788,186.75,186.72,7.94977774]
[1736877622932,2.6788,186.75,186.72,10.62897774]
[1736877623330,2.6787,186.76,186.72,10.62897774]
[1736877623934,3.4186,186.84,186.74,7.94977774]
[1736877624232,10.62797774,186.8,186.75,2.6787]
[1736877624642,2.6782,186.8,186.76,2.6786]
[1736877624836,2.6782,186.8,186.74,7.94977774]
[1736877626038,2.6782,186.8,186.76,7.94977774]
[1736877627140,2.6782,186.8,186.76,10.62837774]
[1736877627942,13.50977774,186.82,186.76,7.94977774]
[1736877628246,13.50977774,186.82,186.74,10.62857774]
[1736877628247,2.6784,186.78,186.74,10.62857774]
[1736877629240,2.6782,186.79,186.75,2.6788]
[1736877629441,2.6782,186.79,186.76,7.94977774]
[1736877631445,2.678,186.81,186.76,7.94977774]
[1736877632340,2.678,186.81,186.77,2.6785]
[1736877632945,2.678,186.81,186.76,7.94977774]
[1736877632946,5.56,186.82,186.76,7.94977774]
[1736877633145,5.56,186.82,186.67,105.77840015]
[1736877633146,7.94977774,186.79,186.67,105.77840015]
[1736877633346,7.94977774,186.81,186.75,7.94977774]
[1736877633738,2.6781,186.8,186.76,2.6785]
[1736877633942,2.6781,186.8,186.75,7.94977774]
[1736877634246,5.56,186.82,186.77,7.94977774]
[1736877634541,3.4186,186.84,186.79,7.94977774]
[1736877634735,13.50977774,186.87,186.81,10.62767774]
[1736877634937,4.7467,186.92,186.81,7.94977774]
[1736877635147,5.56,186.88,186.83,7.94977774]
[1736877635647,8.237,186.88,186.85,2.6774]
[1736877635946,5.56,186.88,186.83,7.94977774]
[1736877636950,2.6771,186.87,186.81,7.94977774]
[1736877637144,5.56,186.88,186.81,7.94977774]
[1736877638150,2.6772,186.86,186.83,2.6775]
[1736877638651,2.6771,186.87,186.84,2.6774]
[1736877638951,10.67069492,186.89,186.85,7.94977774]
[1736877639351,10.67069492,186.89,186.88,2.6769]
[1736877639552,7.94977774,186.98,186.87,7.94977774]
[1736877639751,7.94977774,186.98,186.91,7.94977774]
[1736877639956,13.50977774,186.98,186.91,7.94977774]
[1736877640154,2.676,186.95,186.92,2.6763]
[1736877640350,7.94977774,186.94,186.87,7.94977774]
[1736877640654,7.94977774,186.92,186.87,7.94977774]
[1736877640853,2.6766,186.91,186.87,10.62677774]
[1736877642157,7.94977774,186.9,186.85,2.6774]
[1736877642353,12.78907774,186.9,186.83,7.94977774]
[1736877642553,2.6775,186.84,186.8,2.678]
[1736877643160,10.62697774,186.86,186.82,2.6778]
[1736877644063,7.94977774,186.86,186.8,2.678]
[1736877644264,199.8393,186.9,186.8,2.678]
[1736877644459,7.94977774,186.85,186.8,2.678]
[1736877645466,2.6773,186.86,186.8,2.678]
[1736877645666,12.38766067,186.88,186.8,2.678]
[1736877646557,12.38766067,186.88,186.76,12.38766067]
[1736877646767,2.6775,186.85,186.82,2.6778]
[1736877647168,2.6772,186.86,186.82,2.6778]
[1736877647368,199.8393,186.9,186.82,2.6778]
[1736877647369,199.8393,186.9,186.82,2.6777]
[1736877647564,12.38766067,186.97,186.85,12.38766067]
[1736877647761,2.6762,186.94,186.85,12.38766067]
[1736877647961,1.5679,186.96,186.91,2.6765]
[1736877648164,7.1279,186.96,186.91,2.6765]
[1736877648365,2.6759,186.95,186.85,12.38766067]
[1736877648566,2.6759,186.95,186.91,2.6764]
[1736877648768,2.6757,186.97,186.88,12.38766067]
[1736877648970,195.0,186.99,186.94,2.6761]
[1736877649268,2.676,186.95,186.79,5.3563]
[1736877649474,4.8943,187.05,186.97,2.6756]
[1736877649670,5.56,187.04,186.92,12.38766067]
[1736877649975,2.675,187.02,186.92,12.38766067]
[1736877650375,2.675,187.02,186.96,2.6756]
[1736877650973,2.6751,187.01,186.96,2.6756]
[1736877651473,5.56,187.04,186.94,2.676]
[1736877651474,2.6753,187.0,186.94,2.676]
[1736877651673,2.6753,187.0,186.92,12.38766067]
[1736877653171,2.6753,187.0,186.95,2.6759]
[1736877653675,2.6755,186.98,186.93,2.6761]
[1736877653979,5.56,186.97,186.86,12.38766067]
[1736877654177,7.2754,186.97,186.86,12.38766067]
[1736877654571,2.6758,186.96,186.91,2.6765]
[1736877654973,9.9511,186.97,186.92,2.6762]
[1736877655171,7.2754,186.97,186.89,12.38766067]
[1736877655376,5.56,186.97,186.89,12.38766067]
[1736877655575,5.56,186.97,186.94,2.676]
[1736877656472,5.56,186.97,186.95,2.6759]
[1736877657980,5.56,186.97,186.89,12.38766067]
[1736877658280,8.2357,186.97,186.89,12.38766067]
[1736877658973,8.2357,186.97,186.93,2.6762]
[1736877662380,5.56,186.97,186.94,2.676]
[1736877664379,5.56,186.97,186.89,12.38766067]
[1736877664583,12.38766067,186.95,186.83,7.46815451]
[1736877664883,1.7191,186.94,186.86,2.6771]
[1736877665180,1.7191,186.94,186.83,7.46815451]
[1736877665381,1.7191,186.94,186.79,8.514]
[1736877665382,1.7191,186.94,186.92,2.6764]
[1736877665883,1.7191,186.94,186.91,2.6764]
[1736877666071,1.7191,186.94,186.85,12.38766067]
[1736877666476,1.7191,186.94,186.92,2.6762]
[1736877667282,4.3952,186.94,186.91,2.6764]
[1736877667482,1.7191,186.94,186.85,12.38766067]
[1736877667684,1.7191,186.94,186.87,2.677]
[1736877667976,1.7191,186.94,186.85,12.38766067]
[1736877668572,1.7191,186.94,186.92,2.6763]
[1736877669778,11.5059,186.97,186.94,2.6761]
[1736877670785,2.6758,186.96,186.93,2.6762]
[1736877671283,8.8302,186.97,186.88,12.38766067]
[1736877671485,7.9194584,186.95,186.88,7.9194584]
[1736877671779,7.9194584,186.95,186.83,29.87261805]
[1736877672081,7.9194584,186.89,186.83,37.79207645]
[1736877672288,10.5962584,186.89,186.86,2.6772]
[1736877672584,2.6768,186.89,186.86,2.6772]
[1736877672784,2.677,186.88,186.85,2.6772]
[1736877673780,2.6768,186.89,186.85,2.6772]
[1736877673985,5.56,186.9,186.85,2.6772]
[1736877674286,17.94057556,186.9,186.79,1.6006]
[1736877674488,3.2682,186.89,186.78,12.38057556]
[1736877674688,3.2682,186.89,186.83,2.6775]
[1736877674984,3.2682,186.89,186.78,12.38057556]
[1736877674985,5.56,186.9,186.81,12.38057556]
[1736877676082,5.56,186.9,186.76,12.82545451]
[1736877676281,5.56,186.9,186.81,12.38057556]
[1736877676782,8.2367,186.9,186.86,2.6771]
[1736877678786,8.2367,186.9,186.81,12.38057556]
[1736877678994,8.2367,186.9,186.87,2.677]
[1736877679988,5.56,186.9,186.89,2.6768]
[1736877680180,1.599,186.94,186.77,7.46815451]
[1736877680181,5.56,186.94,186.87,12.38057556]
[1736877680380,12.38057556,186.97,186.87,12.38057556]
[1736877680581,8.2358,186.96,186.93,2.6762]
[1736877681178,5.56,186.96,186.87,12.38057556]
[1736877681784,2.6761,186.94,186.9,2.6765]
[1736877682084,5.56,186.96,186.84,12.38057556]
[1736877682286,2.6763,186.93,186.88,2.6769]
[1736877682476,5.56,186.96,186.88,2.6769]
[1736877682885,2.6765,186.92,186.88,2.6769]
[1736877683587,2.6765,186.91,186.88,2.6769]
[1736877685093,2.6763,186.93,186.84,12.38057556]
[1736877685391,1.6508,186.97,186.87,12.38057556]
[1736877685891,4.3265,186.97,186.9,2.6766]
[1736877686086,1.6508,186.97,186.87,12.38057556]
[1736877686788,2.6758,186.96,186.93,2.6762]
[1736877687190,1.6508,186.97,186.95,2.6759]
[1736877687589,1.6508,186.97,186.87,12.38057556]
[1736877687889,1.6508,186.97,186.84,12.38057556]
[1736877688597,2.676,186.95,186.84,12.38057556]
[1736877688996,2.676,186.95,186.91,2.6764]
[1736877690196,5.56,186.95,186.94,2.676]
[1736877691895,5.56,186.95,186.92,2.6762]
[1736877692091,8.236,186.95,186.85,29.87261805]
[1736877692287,8.236,186.95,186.84,47.60809361]
[1736877692493,8.236,186.95,186.91,2.6764]
[1736877692787,5.56,186.95,186.84,47.60809361]
[1736877693093,5.56,186.95,186.84,42.25319361]
[1736877693401,2.6765,186.91,186.84,42.25319361]
[1736877693695,2.6765,186.91,186.87,2.6769]
[1736877694689,1.7152,186.94,186.81,12.38057556]
[1736877694993,12.38057556,186.92,186.81,12.38057556]
[1736877695194,3.3236,186.91,186.81,12.38057556]
[1736877695496,2.6769,186.89,186.86,2.6772]
[1736877695692,3.3236,186.91,186.86,2.6772]
[1736877696096,3.3236,186.91,186.87,2.6771]
[1736877696293,3.3236,186.91,186.78,100.2]
[1736877696500,3.3236,186.91,186.8,12.38057556]
[1736877697293,3.3236,186.91,186.78,100.2]
[1736877697497,7.92511226,186.88,186.82,7.92511226]
[1736877697990,7.92511226,186.88,186.85,2.6773]
[1736877698195,10.60201226,186.89,186.85,2.6773]
[1736877698402,7.92511226,186.89,186.84,7.92511226]
[1736877698597,3.3236,186.91,186.84,7.92511226]
[1736877698803,11.24871226,186.91,186.84,7.92511226]
[1736877699002,2.6767,186.9,186.84,7.92511226]
[1736877699204,7.92511226,186.89,186.86,2.6771]
[1736877699603,10.60201226,186.89,186.86,2.6771]
[1736877703599,7.92511226,186.87,186.84,2.6774]
[1736877703805,7.92511226,186.85,186.8,7.92511226]
[1736877704798,2.6773,186.86,186.81,2.6778]
[1736877704999,2.6773,186.86,186.8,7.92511226]
[1736877705401,7.92511226,186.87,186.8,7.92511226]
[1736877705604,13.48511226,186.88,186.84,2.6775]
[1736877705798,13.48511226,186.88,186.82,7.92511226]
[1736877706006,16.16211226,186.88,186.82,7.92511226]
[1736877706398,13.48511226,186.88,186.82,7.92511226]
[1736877706897,3.3236,186.91,186.86,7.92511226]
[1736877707203,8.8836,186.91,186.86,7.92511226]
[1736877707392,5.56,186.91,186.84,12.37654681]
[1736877707596,12.37654681,186.96,186.84,12.37654681]
[1736877707794,5.56,186.93,186.84,12.37654681]
[1736877708005,8.2364,186.93,186.89,2.6767]
[1736877708400,5.56,186.93,186.89,2.6767]
[1736877708805,2.6764,186.92,186.89,2.6767]
[1736877712703,2.6767,186.9,186.84,12.37654681]
[1736877712901,12.37654681,186.9,186.79,29.87261805]
[1736877713106,12.37654681,186.87,186.79,29.87261805]
[1736877713308,5.56,186.86,186.79,7.46815451]
[1736877713907,7.1973,186.86,186.79,7.46815451]
[1736877714214,7.1973,186.86,186.79,2.6782]
[1736877714508,12.37654681,186.84,186.79,2.6782]
[1736877715509,2.6777,186.83,186.79,2.6782]
[1736877715709,2.6777,186.83,186.8,2.6781]
[1736877716813,2.6777,186.83,186.79,2.6782]
[1736877717903,2.6775,186.85,186.82,2.6778]
[1736877718107,7.1973,186.86,186.75,12.37654681]
[1736877719115,9.8745,186.86,186.83,2.6776]
[1736877720812,7.1973,186.86,186.84,2.6774]
[1736877722609,9.8745,186.86,186.84,2.6774]
[1736877723216,9.8745,186.86,186.83,2.6775]
[1736877725114,2.6774,186.85,186.82,2.6777]
[1736877725413,2.6774,186.85,186.78,12.37654681]
[1736877725916,9.8746,186.86,186.83,2.6776]
[1736877727816,7.1973,186.86,186.83,2.6776]
[1736877728118,7.1973,186.86,186.75,12.37654681]
[1736877728912,2.6777,186.83,186.75,12.37654681]
[1736877729314,10.60675153,186.83,186.77,7.92905153]
[1736877729916,10.60675153,186.83,186.8,2.678]
[1736877731415,2.6777,186.83,186.8,2.678]
[1736877735320,7.1973,186.86,186.75,12.38800422]
[1736877735520,12.38800422,186.84,186.77,2.6784]
[1736877735817,12.38800422,186.84,186.72,19.85615873]
[1736877736214,12.38800422,186.84,186.72,12.38800422]
[1736877736612,1.6373,186.86,186.78,12.38800422]
[1736877736814,4.3805,186.88,186.85,2.6773]
[1736877737018,1.6128,186.89,186.81,12.38800422]
[1736877737821,1.6128,186.89,186.78,12.38800422]
[1736877738023,2.6773,186.86,186.82,2.6777]
[1736877738326,12.38800422,186.87,186.75,12.38800422]
[1736877738516,1.6076,186.86,186.75,12.38800422]